bitfinex/quotes_SOLUSD_20250305
["timestamp","ask_amount","ask_price","bid_price","bid_amount"]
[1741210707186,0.033,144.7,144.68,25.56134886]
[1741210707762,0.033,144.7,144.69,0.28432314]
[1741210708461,0.033,144.7,144.69,7.19562314]
[1741210708672,0.033,144.7,144.69,337.98743357]
[1741210709004,0.033,144.7,144.69,437.87926879]
[1741210709192,0.033,144.7,144.69,125.87926879]
[1741210710986,0.033,144.7,144.69,127.32977346]
[1741210712080,0.033,144.7,144.69,439.32977346]
[1741210712278,0.033,144.7,144.69,437.87926879]
[1741210712595,0.033,144.7,144.69,418.46094886]
[1741210712792,0.033,144.7,144.69,437.73710722]
[1741210713099,0.033,144.7,144.69,419.02959514]
[1741210713690,0.033,144.7,144.69,437.87926879]
[1741210714292,0.033,144.7,144.69,419.02959514]
[1741210714487,0.033,144.7,144.69,437.87926879]
[1741210714792,0.033,144.7,144.69,419.02959514]
[1741210714976,0.033,144.7,144.69,411.97613357]
[1741210715293,0.033,144.7,144.69,18.64964886]
[1741210715494,0.033,144.7,144.66,87.8126]
[1741210715694,0.033,144.7,144.67,18.933972]
[1741210715869,0.033,144.7,144.67,18.64964886]
[1741210716072,0.033,144.7,144.67,37.49932251]
[1741210716486,0.033,144.7,144.68,0.28432314]
[1741210717072,0.033,144.7,144.69,6.9113]
[1741210717593,0.033,144.7,144.69,7.19562314]
[1741210718187,0.033,144.7,144.69,319.19562314]
[1741210718599,0.033,144.7,144.69,356.83710722]
[1741210718906,0.033,144.7,144.69,125.87926879]
[1741210720199,0.033,144.7,144.69,107.02959514]
[1741210720499,0.033,144.7,144.69,108.48037598]
[1741210720698,0.033,144.7,144.69,108.51037598]
[1741210720998,0.033,144.7,144.69,107.05959514]
[1741210721502,0.033,144.7,144.69,125.90926879]
[1741210721686,0.033,144.7,144.69,437.90926879]
[1741210722602,0.033,144.7,144.69,419.05959514]
[1741210723892,0.033,144.7,144.69,437.90926879]
[1741210729405,0.033,144.7,144.69,419.05959514]
[1741210730791,0.033,144.7,144.69,0.03]
[1741210731295,0.033,144.7,144.69,25.875272]
[1741210731889,0.033,144.7,144.69,38.05162629]
[1741210732808,0.033,144.7,144.69,26.01743357]
[1741210733816,0.033,144.7,144.69,331.10613357]
[1741210734327,0.033,144.7,144.69,338.01743357]
[1741210735023,0.033,144.7,144.69,418.91743357]
[1741210735395,0.033,144.7,144.69,392.93]
[1741210735899,0.033,144.7,144.69,399.8413]
[1741210740021,7.9058,144.7,144.63,0.03]
[1741210740325,81.0,144.69,144.63,0.03]
[1741210741415,0.6911,144.68,144.63,0.03]
[1741210742093,4.22335865,144.68,144.63,0.03]
[1741210742410,5.08512802,144.67,144.63,0.03]
[1741210742616,86.08512802,144.67,144.63,0.03]
[1741210743315,0.6913,144.65,144.63,0.03]
[1741210743993,5.77632802,144.66,144.63,0.03]
[1741210744212,5.08512802,144.64,144.63,0.03]
[1741210745714,81.6912,144.67,144.63,0.03]
[1741210745910,0.6912,144.67,144.63,0.03]
[1741210746218,0.6911,144.68,144.63,0.03]
[1741210746424,81.6911,144.69,144.63,0.03]
[1741210746809,5.06849321,144.66,144.63,0.03]
[1741210747919,81.6911,144.69,144.63,0.31432314]
[1741210748309,81.6911,144.69,144.63,0.03]
[1741210748714,81.6911,144.69,144.63,312.03]
[1741210749603,5.06624752,144.68,144.63,312.03]
[1741210750203,5.06624752,144.68,144.63,318.944]
[1741210750616,5.06624752,144.67,144.63,318.944]
[1741210750906,5.06624752,144.67,144.63,312.03]
[1741210751835,83.4189,144.69,144.63,312.03]
[1741210753014,5.06196256,144.68,144.63,312.03]
[1741210754108,5.06196256,144.67,144.63,0.03]
[1741210755716,81.6911,144.69,144.63,0.03]
[1741210756605,81.6911,144.69,144.63,0.31432314]
[1741210756811,5.06028862,144.68,144.63,7.22802314]
[1741210757136,5.06028862,144.68,144.63,319.22802314]
[1741210757938,81.6911,144.69,144.63,319.22802314]
[1741210758832,81.6911,144.69,144.63,312.31432314]
[1741210760246,81.6911,144.69,144.63,319.22842314]
[1741210760419,5.06036239,144.68,144.63,319.22842314]
[1741210760614,0.6912,144.67,144.63,319.22842314]
[1741210761126,5.75156239,144.68,144.63,319.22842314]
[1741210762341,0.6912,144.68,144.63,319.22842314]
[1741210763644,81.0,144.69,144.64,25.56304886]
[1741210763937,81.6911,144.69,144.64,25.56304886]
[1741210764434,0.033,144.7,144.64,25.56304886]
[1741210764636,0.033,144.7,144.66,0.14216157]
[1741210765033,5.06064509,144.69,144.66,0.14216157]
[1741210765706,5.06064509,144.69,144.68,1.80716157]
[1741210765913,5.06064509,144.69,144.68,113.8238581]
[1741210766130,0.033,144.7,144.68,113.8238581]
[1741210766323,0.033,144.7,144.69,12.18272453]
[1741210766522,0.033,144.7,144.69,31.2588581]
[1741210766841,0.033,144.7,144.69,32.70963982]
[1741210767412,0.033,144.7,144.69,31.2588581]
[1741210767723,0.033,144.7,144.69,344.70958867]
[1741210767910,0.033,144.7,144.69,350.1701581]
[1741210770738,0.033,144.7,144.69,431.0701581]
[1741210771327,0.033,144.7,144.69,119.0701581]
[1741210771667,0.033,144.7,144.69,120.52068259]
[1741210774244,0.033,144.7,144.69,432.52068259]
[1741210774451,0.033,144.7,144.69,431.0701581]
[1741210775142,0.033,144.7,144.69,419.02959514]
[1741210776169,0.033,144.7,144.69,312.0]
[1741210776377,0.033,144.7,144.67,87.8122]
[1741210776555,0.033,144.7,144.68,18.933972]
[1741210776742,0.033,144.7,144.68,30.97453496]
[1741210777864,0.033,144.7,144.69,6.9113]
[1741210778071,0.033,144.7,144.69,25.845272]
[1741210779363,0.033,144.7,144.69,337.845272]
[1741210779565,0.033,144.7,144.69,330.933972]
[1741210779761,0.033,144.7,144.65,92.94056296]
[1741210779969,0.033,144.7,144.67,0.28432314]
[1741210780167,0.033,144.7,144.67,19.07613357]
[1741210780355,0.033,144.7,144.68,0.14216157]
[1741210780556,0.033,144.7,144.69,18.933972]
[1741210781748,0.033,144.7,144.68,80.9]
[1741210783283,0.033,144.7,144.69,0.03]
[1741210784277,0.033,144.7,144.69,18.963972]
[1741210784862,0.033,144.7,144.69,100.00613357]
[1741210785283,0.033,144.7,144.69,113.63968911]
[1741210785468,0.033,144.7,144.69,112.1888581]
[1741210786753,0.033,144.7,144.69,119.1001581]
[1741210787253,0.033,144.7,144.69,431.1001581]
[1741210788755,0.033,144.7,144.69,419.05959514]
[1741210789072,0.033,144.7,144.69,411.863972]
[1741210790272,0.033,144.7,144.69,412.00613357]
[1741210790461,0.033,144.7,144.69,418.91743357]
[1741210791674,0.033,144.7,144.69,431.1001581]
[1741210791978,0.033,144.7,144.69,119.1001581]
[1741210792156,0.033,144.7,144.69,128.3232913]
[1741210794769,0.033,144.7,144.69,440.3232913]
[1741210794969,0.033,144.7,144.69,438.8726581]
[1741210795970,0.033,144.7,144.69,420.63333357]
[1741210796281,0.033,144.7,144.69,420.20684886]
[1741210796661,0.033,144.7,144.69,420.491172]
[1741210796862,0.033,144.7,144.69,108.63333357]
[1741210799782,0.033,144.7,144.69,420.63333357]
[1741210800385,0.033,144.74,144.71,0.14216157]
[1741210800686,0.033,144.74,144.72,18.933972]
[1741210801571,0.033,144.74,144.73,27.57826596]
[1741210801789,0.033,144.74,144.73,38.1682581]
[1741210802589,0.0001,144.74,144.73,38.1682581]
[1741210803279,0.0001,144.74,144.73,119.0682581]
[1741210803593,0.0001,144.74,144.73,431.0682581]
[1741210805698,0.0001,144.74,144.73,432.8172581]
[1741210805885,0.0001,144.74,144.73,434.8172581]
[1741210806073,0.0001,144.74,144.73,441.0772581]
[1741210807155,0.0001,144.74,144.73,439.0772581]
[1741210809171,0.033,144.78,144.77,0.56864628]
[1741210809373,0.0001,144.78,144.77,133.60871004]
[1741210810398,0.0001,144.78,144.77,135.35841004]
[1741210811072,0.0001,144.78,144.77,142.26591004]
[1741210811274,0.0001,144.78,144.77,140.8160581]
[1741210812403,0.0001,144.78,144.77,452.8160581]
[1741210813007,0.0001,144.78,144.77,423.59021182]
[1741210813314,0.0001,144.78,144.77,99.54964886]
[1741210813485,0.0001,144.78,144.77,120.51653026]
[1741210813890,0.0001,144.78,144.77,120.37436869]
[1741210814422,0.0001,144.78,144.77,120.51653026]
[1741210815901,0.0001,144.78,144.77,128.47223026]
[1741210816099,0.033,144.84,144.78,19.21829514]
[1741210816293,0.033,144.84,144.83,18.64964886]
[1741210816501,0.033,144.84,144.83,19.07613357]
[1741210816689,0.033,144.84,144.83,118.74318805]
[1741210817402,0.033,144.84,144.83,99.97613357]
[1741210817892,0.033,144.84,144.83,99.54964886]
[1741210820012,0.033,144.84,144.78,80.9]
[1741210820319,0.033,144.84,144.79,18.933972]
[1741210820616,0.033,144.84,144.78,80.9]
[1741210821723,2.4494,144.84,144.78,80.9]
[1741210822010,0.033,144.84,144.8,0.14216157]
[1741210822210,0.033,144.84,144.82,0.14216157]
[1741210823121,0.033,144.84,144.83,18.64964886]
[1741210823425,0.033,144.84,144.83,25.55424886]
[1741210825121,0.033,144.84,144.83,25.838572]
[1741210825819,0.033,144.84,144.83,25.98073357]
[1741210826309,0.033,144.84,144.83,0.28432314]
[1741210827305,0.033,144.84,144.83,18.933972]
[1741210829006,0.033,144.84,144.83,25.838572]
[1741210829824,0.033,144.84,144.83,44.74778805]
[1741210830424,0.033,144.84,144.83,127.23936474]
[1741210831115,0.033,144.84,144.83,108.47231026]
[1741210831929,0.033,144.84,144.83,127.23936474]
[1741210832221,0.033,144.84,144.83,107.02289514]
[1741210832598,0.033,144.84,144.83,125.78994962]
[1741210833113,0.033,144.84,144.83,107.02289514]
[1741210833420,0.033,144.84,144.83,99.833972]
[1741210834625,0.033,144.84,144.8,25.00705448]
[1741210834626,0.033,144.84,144.8,87.8059]
[1741210835020,0.033,144.84,144.81,18.64964886]
[1741210837328,0.033,144.84,144.81,25.55514886]
[1741210843934,0.033,144.84,144.82,12.30109468]
[1741210844723,0.033,144.84,144.82,0.28432314]
[1741210845109,0.033,144.84,144.82,81.18432314]
[1741210845713,0.033,144.84,144.83,7.18892314]
[1741210846128,0.033,144.84,144.83,118.89750511]
[1741210846334,0.033,144.84,144.83,119.03966668]
[1741210846749,0.033,144.85,144.84,19.21829514]
[1741210846933,0.033,144.85,144.84,346.3543118]
[1741210847141,0.033,144.87,144.86,30.80858197]
[1741210847326,0.033,144.87,144.86,112.13506668]
[1741210848644,0.033,144.87,144.86,119.03826668]
[1741210849138,0.033,144.87,144.86,120.48734333]
[1741210850350,0.033,144.87,144.86,432.48734333]
[1741210850536,0.033,144.87,144.86,431.03826668]
[1741210853030,0.033,144.87,144.86,430.4696204]
[1741210853354,0.033,144.87,144.86,411.833972]
[1741210853536,0.033,144.87,144.86,99.54964886]
[1741210853855,0.033,144.87,144.86,106.737172]
[1741210854158,0.033,144.87,144.86,99.833972]
[1741210854358,0.033,144.87,144.86,106.737172]
[1741210854864,0.033,144.87,144.86,99.833972]
[1741210855224,0.033,144.87,144.86,106.737172]
[1741210856338,0.033,144.87,144.86,99.833972]
[1741210856545,0.033,144.87,144.86,99.54964886]
[1741210857127,0.033,144.87,144.86,18.64964886]
[1741210858433,0.033,144.87,144.86,25.837172]
[1741210858627,0.033,144.87,144.86,25.97933357]
[1741210859550,0.033,144.87,144.86,349.99610511]
[1741210859752,0.033,144.87,144.86,350.13826668]
[1741210860933,0.033,144.87,144.86,432.79486668]
[1741210861346,0.033,144.87,144.86,120.79486668]
[1741210861547,0.033,144.87,144.86,122.24371174]
[1741210864341,0.033,144.87,144.86,434.24371174]
[1741210864554,0.033,144.87,144.86,432.79486668]
[1741210867551,0.033,144.87,144.86,411.97613357]
[1741210867753,0.033,144.87,144.86,99.54964886]
[1741210868354,0.033,144.87,144.86,18.64964886]
[1741210868735,0.033,144.87,144.84,0.03]
[1741210869571,0.6903,144.85,144.84,0.03]
[1741210870873,5.77030065,144.86,144.84,0.03]
[1741210871039,5.08000065,144.85,144.84,0.03]
[1741210872432,5.08000065,144.85,144.84,18.963972]
[1741210872658,5.08000065,144.85,144.84,19.10613357]
[1741210873357,5.08000065,144.85,144.84,37.87149915]
[1741210873548,0.033,144.87,144.85,0.28432314]
[1741210873741,0.033,144.87,144.86,7.18752314]
[1741210874358,0.033,144.87,144.86,25.837172]
[1741210874553,0.033,144.87,144.86,18.933972]
[1741210875661,0.033,144.87,144.86,330.933972]
[1741210875886,0.033,144.87,144.86,337.837172]
[1741210877946,0.033,144.87,144.85,80.9]
[1741210878264,0.033,144.87,144.85,87.8036]
[1741210878840,0.033,144.87,144.86,0.14216157]
[1741210879057,0.033,144.87,144.86,37.84149915]
[1741210879269,0.033,144.87,144.86,125.78686072]
[1741210879567,0.033,144.87,144.86,127.23595595]
[1741210880459,0.033,144.87,144.86,125.78686072]
[1741210880647,0.033,144.87,144.86,127.23591038]
[1741210881159,0.033,144.87,144.86,439.23591038]
[1741210881367,0.033,144.87,144.86,437.78686072]
[1741210885257,0.033,144.87,144.86,411.833972]
[1741210885463,0.033,144.87,144.86,99.69181043]
[1741210885673,0.033,144.87,144.85,6.9036]
[1741210888464,0.033,144.87,144.85,330.933972]
[1741210888788,0.033,144.87,144.84,80.93]
[1741210889574,0.033,144.87,144.84,0.03]
[1741210889881,0.033,144.87,144.85,0.03]
[1741210890382,5.08546188,144.86,144.85,0.03]
[1741210893484,5.77576188,144.86,144.85,0.03]
[1741210896771,5.08546188,144.86,144.85,0.03]
[1741210897373,5.77576188,144.86,144.85,0.03]
[1741210900881,5.08546188,144.86,144.85,0.03]
[1741210902875,5.77576188,144.86,144.85,0.03]
[1741210920310,5.08546188,144.86,144.85,0.03]
[1741210921411,5.77576188,144.86,144.85,0.03]
[1741210921833,5.08546188,144.86,144.85,0.03]
[1741210925116,5.08546188,144.86,144.85,25.58324886]
[1741210926222,5.08546188,144.86,144.85,0.03]
[1741210929813,5.08546188,144.86,144.85,6.9336]
[1741210930521,0.033,144.87,144.85,6.9336]
[1741210930906,0.033,144.87,144.85,0.03]
[1741210933019,5.08902858,144.86,144.85,0.03]
[1741210934931,5.08902858,144.86,144.85,19.24829514]
[1741210935235,5.08902858,144.86,144.85,31.25894718]
[1741210935824,5.08902858,144.86,144.85,119.06254718]
[1741210936021,5.08902858,144.86,144.85,99.863972]
[1741210936233,0.033,144.87,144.85,88.11792314]
[1741210936847,0.033,144.87,144.86,18.64964886]
[1741210939138,0.033,144.87,144.86,18.64964886]
[1741210941237,0.033,144.87,144.86,25.837172]
[1741210941637,0.033,144.87,144.86,37.98998561]
[1741210942341,0.033,144.87,144.86,18.933972]
[1741210943427,0.033,144.87,144.86,25.837172]
[1741210944644,0.033,144.87,144.86,337.837172]
[1741210945645,0.033,144.87,144.86,25.837172]
[1741210947028,0.033,144.87,144.86,18.933972]
[1741210949449,0.033,144.87,144.86,25.837172]
[1741210953541,0.033,144.87,144.86,18.933972]
[1741210954445,0.033,144.87,144.85,80.93]
[1741210954753,0.033,144.87,144.85,0.03]
[1741210954961,81.033,144.87,144.85,0.03]
[1741210955170,3.25855865,144.86,144.85,0.03]
[1741210955462,3.64885865,144.86,144.85,0.03]
[1741210958671,3.64885865,144.86,144.84,0.03]
[1741210958841,107.9,144.85,144.84,0.03]
[1741210959241,107.9,144.85,144.78,0.03]
[1741210959572,88.33445865,144.84,144.78,0.03]
[1741210960140,0.6904,144.83,144.78,0.03]
[1741210962542,1.20435865,144.82,144.78,0.03]
[1741210962743,81.0,144.81,144.78,0.03]
[1741210964461,81.6905,144.81,144.78,0.03]
[1741210966860,81.0,144.81,144.78,0.03]
[1741210967465,81.6905,144.81,144.78,0.03]
[1741210969774,82.89485865,144.81,144.78,0.03]
[1741210970267,0.6906,144.79,144.78,0.03]
[1741210972462,81.0,144.8,144.78,0.03]
[1741210975884,81.6905,144.82,144.78,0.03]
[1741210976291,81.0,144.82,144.78,0.03]
[1741210976988,81.0,144.82,144.78,6.937]
[1741210977369,81.6905,144.82,144.78,6.937]
[1741210978076,81.6905,144.82,144.78,0.03]
[1741210978287,81.0,144.82,144.78,0.03]
[1741210980891,0.7234,144.84,144.78,0.31432314]
[1741210981101,0.033,144.84,144.78,0.31432314]
[1741210981913,0.033,144.84,144.79,18.64964886]
[1741210982199,0.033,144.84,144.78,0.03]
[1741210982200,81.0,144.83,144.78,0.03]
[1741210982496,82.20435865,144.83,144.78,0.03]
[1741210983664,0.6905,144.82,144.78,0.03]
[1741210986078,1.20435865,144.81,144.78,0.03]
[1741210987573,81.0,144.8,144.78,0.03]
[1741210987778,109.10435865,144.79,144.78,0.03]
[1741210988077,1.89495865,144.79,144.78,0.03]
[1741210995991,26.9,144.8,144.78,0.03]
[1741210998480,81.0,144.83,144.78,0.03]
[1741210998812,28.13735865,144.84,144.8,18.64964886]
[1741210998813,0.033,144.84,144.8,18.64964886]
[1741210998989,0.033,144.84,144.8,30.6603009]
[1741210999193,0.033,144.84,144.8,18.64964886]
[1741210999983,0.033,144.84,144.81,6.9056]
[1741211000603,0.033,144.84,144.8,18.64964886]
[1741211004187,0.033,144.84,144.81,1.5369]
[1741211015019,0.033,144.84,144.81,1.5669]
[1741211017923,0.033,144.84,144.81,8.4724]
[1741211018302,0.033,144.84,144.82,18.64964886]
[1741211019514,0.033,144.84,144.82,25.55454886]
[1741211019710,0.033,144.84,144.82,18.64964886]
[1741211020405,0.033,144.84,144.81,1.5669]
[1741211023196,0.033,144.84,144.81,1.5669]
[1741211031031,0.033,144.84,144.81,8.4723]
[1741211032831,0.033,144.84,144.82,18.64964886]
[1741211034038,0.033,144.84,144.83,6.9046]
[1741211035638,0.033,144.84,144.83,25.55424886]
[1741211035833,0.033,144.84,144.83,18.64964886]
[1741211036543,0.033,144.84,144.81,1.5669]
[1741211036746,0.033,144.84,144.81,8.4723]
[1741211037335,0.033,144.84,144.82,18.64964886]
[1741211040646,0.033,144.84,144.81,1.5669]
[1741211042434,0.033,144.84,144.81,8.4722]
[1741211045252,0.033,144.84,144.82,25.55474886]
[1741211046322,0.033,144.84,144.82,18.64964886]
[1741211046527,0.033,144.84,144.82,25.55464886]
[1741211047536,0.033,144.84,144.83,0.28432314]
[1741211047739,0.033,144.84,144.83,331.07613357]
[1741211047932,0.033,144.84,144.83,343.08678561]
[1741211048463,0.033,144.84,144.83,343.22894718]
[1741211049654,0.033,144.84,144.83,431.03354718]
[1741211050035,0.033,144.84,144.83,437.03844718]
[1741211050966,0.033,144.84,144.83,125.03844718]
[1741211051132,0.033,144.84,144.83,126.48771818]
[1741211052551,0.033,144.87,144.86,0.14216157]
[1741211052763,0.033,144.87,144.86,31.22894718]
[1741211053638,0.033,144.87,144.86,112.12894718]
[1741211053862,0.033,144.87,144.86,425.57796743]
[1741211054045,0.033,144.87,144.86,424.12894718]
[1741211055138,0.033,144.87,144.86,431.03214718]
[1741211055531,0.033,144.87,144.86,419.02149514]
[1741211055729,0.033,144.87,144.86,431.03214718]
[1741211061965,0.033,144.87,144.86,119.03214718]
[1741211063153,0.033,144.87,144.86,111.98678561]
[1741211063968,0.033,144.87,144.86,99.97613357]
[1741211064263,0.033,144.87,144.86,111.98678561]
[1741211064450,0.033,144.87,144.86,118.88998561]
[1741211064940,0.033,144.87,144.86,430.88998561]
[1741211066543,0.033,144.87,144.86,118.88998561]
[1741211067863,0.0001,144.87,144.86,120.48130909]
[1741211068435,0.033,144.89,144.88,27.06334628]
[1741211068643,0.033,144.89,144.88,59.17234194]
[1741211068945,0.033,144.89,144.88,140.07234194]
[1741211069269,0.033,144.9,144.89,19.07613357]
[1741211069460,0.033,144.9,144.89,411.97613357]
[1741211069660,0.033,144.9,144.89,423.98678561]
[1741211070164,0.033,144.9,144.89,430.88848561]
[1741211072987,0.033,144.9,144.89,423.98678561]
[1741211073277,0.033,144.9,144.89,431.03064718]
[1741211073473,0.033,144.9,144.89,411.97613357]
[1741211073771,0.033,144.9,144.89,18.933972]
[1741211073965,0.033,144.9,144.89,0.28432314]
[1741211076173,0.033,144.9,144.89,12.29497518]
[1741211077664,0.033,144.9,144.89,0.28432314]
[1741211079374,0.033,144.9,144.87,312.0]
[1741211079563,0.033,144.9,144.88,0.28432314]
[1741211080576,0.033,144.9,144.87,18.64964886]
[1741211080759,0.033,144.9,144.85,12.01065204]
[1741211080961,0.033,144.9,144.86,0.28432314]
[1741211083353,0.033,144.9,144.85,18.64964886]
[1741211083557,81.033,144.9,144.84,0.03]
[1741211083873,87.3757,144.9,144.84,0.03]
[1741211084257,1.50435865,144.89,144.84,0.03]
[1741211085566,2.4157,144.88,144.84,0.03]
[1741211085879,0.6902,144.88,144.84,0.03]
[1741211086076,0.6901,144.89,144.84,0.03]
[1741211086373,88.0658,144.9,144.84,0.03]
[1741211086576,88.0658,144.9,144.84,0.31432314]
[1741211087185,81.033,144.9,144.84,30.97462404]
[1741211087366,81.033,144.9,144.86,18.64964886]
[1741211088178,81.033,144.9,144.85,6.9036]
[1741211088351,81.033,144.9,144.86,18.64964886]
[1741211088757,0.033,144.9,144.86,18.64964886]
[1741211091673,0.033,144.9,144.84,81.21432314]
[1741211091871,0.033,144.9,144.84,88.11832314]
[1741211092693,0.033,144.9,144.85,18.64964886]
[1741211094793,0.6901,144.89,144.85,18.64964886]
[1741211100195,0.6901,144.89,144.84,7.21842314]
[1741211100196,0.6901,144.89,144.84,0.03]
[1741211102275,1.7254,144.89,144.84,0.03]
[1741211102686,1.50435865,144.88,144.84,0.03]
[1741211103089,1.7254,144.89,144.84,0.03]
[1741211104000,2.22745865,144.9,144.84,0.03]
[1741211104207,0.7231,144.9,144.84,0.03]
[1741211104884,3.95275865,144.9,144.84,0.03]
[1741211106986,2.4484,144.9,144.84,0.03]
[1741211107804,0.7231,144.9,144.84,0.03]
[1741211108805,0.033,144.9,144.85,30.94462404]
[1741211109404,0.033,144.9,144.85,18.933972]
[1741211109901,0.033,144.9,144.85,330.933972]
[1741211110079,0.033,144.9,144.85,337.837172]
[1741211111785,0.033,144.9,144.85,349.84782404]
[1741211112505,0.033,144.9,144.87,18.64964886]
[1741211112698,0.033,144.9,144.88,0.28432314]
[1741211113207,0.033,144.9,144.89,18.64964886]
[1741211114702,0.033,144.9,144.85,12.01065204]
[1741211114914,0.033,144.9,144.84,12.18281361]
[1741211115212,0.033,144.9,144.85,0.28432314]
[1741211115402,0.033,144.9,144.85,18.933972]
[1741211116008,0.033,144.9,144.86,18.64964886]
[1741211117884,0.033,144.9,144.86,6.9029]
[1741211120210,0.033,144.9,144.85,37.84812404]
[1741211121816,0.033,144.9,144.85,37.87812404]
[1741211126206,0.033,144.9,144.85,0.31432314]
[1741211126587,0.033,144.9,144.85,7.21792314]
[1741211127210,0.033,144.9,144.85,0.31432314]
[1741211127583,0.033,144.9,144.85,19.22857518]
[1741211127898,0.033,144.9,144.86,18.64964886]
[1741211128312,0.033,144.9,144.86,25.55254886]
[1741211129014,0.033,144.9,144.86,18.64964886]
[1741211130092,0.033,144.9,144.85,0.31432314]
[1741211130593,0.033,144.9,144.86,18.64964886]
[1741211131210,0.033,144.9,144.85,18.963972]
[1741211131415,0.033,144.9,144.86,6.9031]
[1741211132915,0.033,144.9,144.88,18.64964886]
[1741211134607,0.033,144.9,144.88,0.28432314]
[1741211137718,0.033,144.9,144.88,7.18652314]
[1741211138918,0.033,144.9,144.88,19.19717518]
[1741211140014,0.033,144.9,144.89,12.29497518]
[1741211140791,0.033,144.9,144.89,31.22894718]
[1741211141101,0.033,144.9,144.89,38.13064718]
[1741211143999,0.033,144.9,144.85,6.23]
[1741211144197,0.033,144.9,144.85,6.9335]
[1741211144403,0.033,144.9,144.85,0.03]
[1741211144703,0.033,144.9,144.86,0.31432314]
[1741211145497,0.033,144.9,144.86,0.03]
[1741211149425,6.26,144.9,144.86,0.03]
[1741211149722,1.4871,144.89,144.86,0.03]
[1741211150604,2.1772,144.89,144.86,0.03]
[1741211151710,3.9026,144.89,144.86,0.03]
[1741211154497,1.50435865,144.88,144.86,0.03]
[1741211154809,0.6902,144.87,144.86,0.03]
[1741211155222,0.6902,144.87,144.85,0.03]
[1741211155405,1.50435865,144.86,144.84,0.03]
[1741211155724,7.5222,144.85,144.84,0.03]
[1741211156420,7.5222,144.85,144.84,0.0001]
[1741211157122,8.2125,144.85,144.84,0.0001]
[1741211162728,81.0,144.85,144.84,0.0001]
[1741211163111,81.6903,144.85,144.84,0.0001]
[1741211163827,81.0,144.85,144.84,0.0001]
[1741211164319,81.6903,144.85,144.84,0.0001]
[1741211164632,81.0,144.85,144.84,0.0001]
[1741211165433,81.6903,144.85,144.84,0.0001]
[1741211165931,81.0,144.85,144.84,0.0001]
[1741211167136,81.6903,144.85,144.84,0.0001]
[1741211168938,0.6903,144.85,144.84,0.0001]
[1741211169138,2.19465865,144.85,144.84,0.0001]
[1741211169451,2.22765865,144.85,144.84,0.0001]
[1741211172523,7.6143,144.84,144.81,0.03]
[1741211172723,1.50435865,144.83,144.78,0.03]
[1741211174516,2.4167,144.82,144.78,0.03]
[1741211174719,1.50435865,144.81,144.78,0.03]
[1741211175923,107.9,144.8,144.78,0.03]
[1741211176122,1.50435865,144.81,144.78,0.03]
[1741211176123,109.40435865,144.79,144.78,0.03]
[1741211176837,110.09495865,144.79,144.78,0.03]
[1741211181043,2.19495865,144.79,144.78,0.03]
[1741211181756,2.19495865,144.79,144.72,0.03]
[1741211181949,3.92155865,144.79,144.72,0.03]
[1741211183256,7.46132035,144.79,144.72,0.03]
[1741211184749,5.73472035,144.79,144.72,0.03]
[1741211186848,107.9,144.78,144.72,0.03]
[1741211187649,0.6907,144.77,144.72,0.03]
[1741211188031,2.19505865,144.77,144.72,0.03]